[Event "CIS Master Groups 2024"]
[Site "Vasto"]
[Date "2024.04.12"]
[Round "7.14"]
[White "Lodici, Lorenzo"]
[Black "Dardha, Daniel"]
[Result "1/2-1/2"]
[ECO "B28"]
[WhiteElo "2565"]
[BlackElo "2630"]
[Annotator "RC"]
[PlyCount "58"]
[EventDate "2024.04.07"]
[EventType "team-tourn"]
[EventCountry "ITA"]
[SourceTitle "playchess.com"]
[Source "ChessBase"]
[SourceQuality "1"]
[TimeControl "40/5400+30:900+30"]

1. e4 {[%emt 0:00:01]} c5 {[%emt 0:03:19]} 2. Nf3 {[%emt 0:00:05]} a6 {[%emt 0:01:13]} 3. c4 {[%emt 0:14:22]} Nc6 {[%emt 0:00:22]} 4. d4 {[%emt 0:00:03]} cxd4 {[%emt 0:00:07]} 5. Nxd4 {[%emt 0:00:02]} Nf6 {[%emt 0:00:16]} 6. Nc3 {[%emt 0:00:03]} e5 {[%emt 0:00:13]} 7. Nf5 {[%emt 0:00:03]} d5 {[%emt 0:00:23]} 8. cxd5 {[%emt 0:00:03]} Bxf5 {[%emt 0:00:24]} 9. exf5 {[%emt 0:00:04]} Nd4 {[%emt 0:00:05]} 10. Bg5 {[%emt 0:02:05]} Be7 {[%emt 0:00:30]} 11. Bd3 {[%emt 0:05:48]} Nxd5 {[%emt 0:07:36]} 12. Bxe7 {[%emt 0:03:50]} Nxe7 {[%emt 0:00:06]} 13. Qg4 {[%emt 0:00:18]} O-O {[%emt 0:03:00]} 14. O-O {[%emt 0:00:38]} Qd7 {[%emt 0:07:33]} 15. Rae1 {[%emt 0:21:22]} f6 {[%emt 0:09:05]} 16. f4 {[%emt 0:05:39]} Ndxf5 {[%emt 0:18:23]} 17. Bxf5 {[%emt 0:06:21]} Nxf5 {[%emt 0:00:36]} 18. fxe5 {[%emt 0:00:06]} fxe5 {[%emt 0:00:07]} 19. Qc4+ {[%emt 0:00:17]} Qf7 {[%emt 0:05:13]} 20. Qxf7+ {[%emt 0:14:35]} Rxf7 {[%emt 0:00:05]} 21. Rxe5 {[%emt 0:00:05]} Ne7 {[%emt 0:02:44]} 22. Rfe1 {[%emt 0:01:58]} Nc6 {[%emt 0:00:26]} 23. Re8+ {[%emt 0:00:02]} Rf8 {[%emt 0:01:09]} 24. Rxa8 {[%emt 0:00:02]} Rxa8 {[%emt 0:00:05]} 25. Nd5 {[%emt 0:04:20]} Kf7 {[%emt 0:03:11]} 26. Rf1+ {[%emt 0:00:03]} Kg6 {[%emt 0:00:18]} 27. Nf4+ {[%emt 0:01:09]} Kh6 {[%emt 0:02:59]} 28. Rd1 {[%emt 0:02:24]} Re8 {[%emt 0:07:18]} 29. Rd7 {[%emt 0:02:16]} Re4 {[%emt 0:04:07]} 1/2-1/2

[Event "CIS Master Groups 2024"]
[Site "Vasto"]
[Date "2024.04.12"]
[Round "7.15"]
[White "Basso, Pier Luigi"]
[Black "Barp, Alberto"]
[Result "1/2-1/2"]
[ECO "C95"]
[WhiteElo "2507"]
[BlackElo "2470"]
[Annotator "TA"]
[PlyCount "55"]
[EventDate "2024.04.07"]
[EventType "team-tourn"]
[EventCountry "ITA"]
[SourceTitle "playchess.com"]
[Source "ChessBase"]
[SourceQuality "1"]
[TimeControl "40/5400+30:900+30"]

{[%evp 30,55,6,6,20,14,0,0,14,13,11,0,22,8,36,-16,-7,-11,-22,-34,-30,-41,-34,-62,-61,-62,-60,-75]} 1. e4 {[%emt 0:02:12]} e5 {[%emt 0:01:10]} 2. Nf3 {[%emt 0:01:26]} Nc6 {[%emt 0:00:06]} 3. Bb5 {[%emt 0:00:13][%cal Bf1b5,Bb5a4,Ba4b3][%mdl 32]} a6 {[%emt 0:00:28]} 4. Ba4 {[%emt 0:00:07]} Nf6 {[%emt 0:01:20]} 5. O-O {[%emt 0:00:07]} Be7 {[%emt 0:00:52]} 6. Re1 {[%emt 0:00:49]} b5 {[%emt 0:00:09]} 7. Bb3 {[%emt 0:00:05]} d6 {[%emt 0:00:33]} 8. c3 {[%emt 0:00:16]} O-O {[%emt 0:00:20]} 9. h3 {[%emt 0:00:49]} Nb8 {[%emt 0:00:43]} 10. d4 {[%emt 0:00:26]} Nbd7 {[%emt 0:00:05]} 11. Nbd2 {[%emt 0:00:23][%cal Bb1d2,Bd2f1,Bf1g3][%mdl 32]} Bb7 {[%emt 0:00:12]} 12. Bc2 {[%emt 0:00:59]} Re8 {[%emt 0:00:20]} 13. Nf1 {[%emt 0:00:13]} Bf8 {[%emt 0:00:07]} 14. Ng3 {[%emt 0:00:05]} g6 {[%emt 0:00:19]} 15. b3 {[%emt 0:00:24]} Bg7 {[%emt 0:02:05]} 16. d5 {[%emt 0:08:41]} Qb8 {[%emt 0:02:00]} 17. Rb1 {[%emt 0:05:27]} c6 {[%emt 0:03:04]} 18. c4 {[%emt 0:00:07]} Qc7 {[%emt 0:02:03] The position is equal.} 19. Bg5 {[%emt 0:02:12]} Rec8 {[%emt 0:05:06]} 20. Rc1 {[%emt 0:03:01]} bxc4 {[%emt 0:01:57]} 21. bxc4 {[%emt 0:00:35]} a5 {[%emt 0:00:24]} 22. Qd2 {[%emt 0:04:15]} ({White should try} 22. Be3 $14) 22... Nc5 $11 {[%emt 0:11:13]} 23. Be3 {[%emt 0:02:30] Threatens to win with Bxc5.} Nfd7 {[%emt 0:15:55]} 24. Bh6 {[%emt 0:01:54]} Qd8 {[%emt 0:07:25]} 25. Bg5 {[%emt 0:05:32]} Bf6 {[%emt 0:03:03] Black is slightly better.} 26. Be3 {[%emt 0:01:23]} Ba6 {[%emt 0:02:38]} 27. Bb1 {[%emt 0:02:07]} Rab8 {[%emt 0:01:19]} 28. Nf1 {[%emt 0:22:38] Weighted Error Value: White=0.14 (very precise) /Black=0.04 (flawless) .  Mistake:       	White=1     	---        Inaccurate:     	White=1     	---        OK:         	White=2     	Black=7      Best:        	---       	Black=1} 1/2-1/2

[Event "CIS Master Groups 2024"]
[Site "Vasto"]
[Date "2024.04.12"]
[Round "7.16"]
[White "Cappelletto, Joshuaede"]
[Black "Ballotti, Luca"]
[Result "1-0"]
[ECO "C54"]
[WhiteElo "2306"]
[BlackElo "2223"]
[Annotator "RC"]
[PlyCount "77"]
[EventDate "2024.04.07"]
[EventType "team-tourn"]
[EventCountry "ITA"]
[SourceTitle "playchess.com"]
[Source "ChessBase"]
[SourceQuality "1"]
[TimeControl "40/5400+30:900+30"]

1. e4 {[%emt 0:03:26]} e5 {[%emt 0:00:29]} 2. Nf3 {[%emt 0:00:08]} Nc6 {[%emt 0:00:05]} 3. Bc4 {[%emt 0:00:04]} Bc5 {[%emt 0:00:07]} 4. c3 {[%emt 0:00:11]} Nf6 {[%emt 0:00:07]} 5. d4 {[%emt 0:00:05]} exd4 {[%emt 0:00:07]} 6. b4 {[%emt 0:00:05]} Bb6 {[%emt 0:07:05]} 7. e5 {[%emt 0:00:33]} d5 {[%emt 0:02:48]} 8. exf6 {[%emt 0:00:07]} dxc4 {[%emt 0:00:09]} 9. Qe2+ {[%emt 0:00:10]} Be6 {[%emt 0:01:03]} 10. b5 {[%emt 0:00:10]} Na5 {[%emt 0:10:12]} 11. fxg7 {[%emt 0:00:09]} Rg8 {[%emt 0:00:21]} 12. Nxd4 {[%emt 0:00:45]} Qd5 {[%emt 0:07:29]} 13. Nxe6 {[%emt 0:07:42]} fxe6 {[%emt 0:03:06]} 14. Bh6 {[%emt 0:00:50]} O-O-O {[%emt 0:00:45]} 15. O-O {[%emt 0:01:02]} e5 {[%emt 0:04:38]} 16. Qg4+ {[%emt 0:23:14]} Kb8 {[%emt 0:00:17]} 17. Na3 {[%emt 0:00:17]} Qf7 {[%emt 0:11:34]} 18. Qe4 {[%emt 0:06:21]} Qh5 {[%emt 0:07:06]} 19. Qxh7 {[%emt 0:10:21]} Bc5 {[%emt 0:02:13]} 20. Nc2 {[%emt 0:00:42]} Be7 {[%emt 0:04:09]} 21. Ne3 {[%emt 0:02:43]} Bg5 {[%emt 0:03:05]} 22. Rad1 {[%emt 0:00:49]} Rde8 {[%emt 0:03:04]} 23. Nf5 {[%emt 0:01:05]} c6 {[%emt 0:00:58]} 24. Rd6 {[%emt 0:01:46]} cxb5 {[%emt 0:05:24]} 25. Qg6 {[%emt 0:03:49]} Qxg6 {[%emt 0:00:02]} 26. Rxg6 {[%emt 0:00:05]} Be7 {[%emt 0:04:55]} 27. h4 {[%emt 0:00:44]} Nc6 {[%emt 0:06:12]} 28. h5 {[%emt 0:01:12]} b4 {[%emt 0:05:15]} 29. Be3 {[%emt 0:01:54]} Bf8 {[%emt 0:02:41]} 30. h6 {[%emt 0:03:26]} Bxg7 {[%emt 0:00:13]} 31. Rxg7 {[%emt 0:01:04]} a5 {[%emt 0:02:26]} 32. Rxg8 {[%emt 0:08:36]} Rxg8 {[%emt 0:00:01]} 33. Nd6 {[%emt 0:00:24]} Rh8 {[%emt 0:01:24]} 34. cxb4 {[%emt 0:00:15]} Nxb4 {[%emt 0:00:46]} 35. Nxc4 {[%emt 0:00:14]} Nxa2 {[%emt 0:00:17]} 36. Ra1 {[%emt 0:00:32]} Nc3 {[%emt 0:00:04]} 37. Rxa5 {[%emt 0:00:05]} b5 {[%emt 0:00:16]} 38. Nxe5 {[%emt 0:00:04]} b4 {[%emt 0:00:17]} 39. Nc6+ {[%emt 0:00:04]} 1-0

[Event "CIS Master Groups 2024"]
[Site "Vasto"]
[Date "2024.04.12"]
[Round "7.17"]
[White "Sala, Giulia"]
[Black "Milliet, Sophie"]
[Result "1/2-1/2"]
[ECO "B34"]
[WhiteElo "1994"]
[BlackElo "2392"]
[Annotator "RC"]
[PlyCount "181"]
[EventDate "2024.04.07"]
[EventType "team-tourn"]
[EventCountry "ITA"]
[SourceTitle "playchess.com"]
[Source "ChessBase"]
[SourceQuality "1"]
[TimeControl "40/5400+30:900+30"]

1. e4 {[%emt 0:00:03]} c5 {[%emt 0:00:06]} 2. Nf3 {[%emt 0:00:04]} d6 {[%emt 0:00:04]} 3. d4 {[%emt 0:00:05]} cxd4 {[%emt 0:00:03]} 4. Nxd4 {[%emt 0:00:06]} Nf6 {[%emt 0:00:04]} 5. Nc3 {[%emt 0:00:06]} Nc6 {[%emt 0:00:04]} 6. Nb3 {[%emt 0:00:34]} g6 {[%emt 0:00:46]} 7. Bd3 {[%emt 0:00:39]} Bg7 {[%emt 0:00:37]} 8. O-O {[%emt 0:00:21]} O-O {[%emt 0:00:35]} 9. f4 {[%emt 0:01:27]} a6 {[%emt 0:06:41]} 10. a4 {[%emt 0:03:37]} Nb4 {[%emt 0:07:04]} 11. Kh1 {[%emt 0:01:19]} Nxd3 {[%emt 0:10:42]} 12. cxd3 {[%emt 0:01:01]} Bg4 {[%emt 0:05:10]} 13. Qe1 {[%emt 0:03:29]} Qb6 {[%emt 0:01:12]} 14. Ra3 {[%emt 0:11:34]} Be6 {[%emt 0:02:38]} 15. Be3 {[%emt 0:00:41]} Qb4 {[%emt 0:04:15]} 16. Bd2 {[%emt 0:14:30]} Bxb3 {[%emt 0:05:48]} 17. Nd5 {[%emt 0:01:26]} Qd4 {[%emt 0:00:26]} 18. Nxe7+ {[%emt 0:07:35]} Kh8 {[%emt 0:00:00]} 19. Rxb3 {[%emt 0:00:42]} Rfe8 {[%emt 0:14:44]} 20. Rxb7 {[%emt 0:00:24]} Qxd3 {[%emt 0:01:39]} 21. e5 {[%emt 0:15:14]} Ne4 {[%emt 0:01:48]} 22. Bb4 {[%emt 0:00:21]} a5 {[%emt 0:09:51]} 23. Ba3 {[%emt 0:02:12]} Qa6 {[%emt 0:08:56]} 24. Rb5 {[%emt 0:03:15]} f5 {[%emt 0:02:00]} 25. Qh4 {[%emt 0:08:27]} dxe5 {[%emt 0:01:39]} 26. fxe5 {[%emt 0:05:28]} Bxe5 {[%emt 0:00:14]} 27. Rc1 {[%emt 0:05:29]} Qf6 {[%emt 0:04:41]} 28. Qxf6+ {[%emt 0:02:15]} Bxf6 {[%emt 0:00:04]} 29. Nd5 {[%emt 0:01:56]} Rac8 {[%emt 0:05:57]} 30. Rxc8 {[%emt 0:10:04]} Rxc8 {[%emt 0:00:01]} 31. Nc3 {[%emt 0:00:48]} Nxc3 {[%emt 0:01:57]} 32. bxc3 {[%emt 0:00:01]} Bxc3 {[%emt 0:00:16]} 33. Kg1 {[%emt 0:00:13]} Rc4 {[%emt 0:00:59]} 34. Rb8+ {[%emt 0:01:06]} Kg7 {[%emt 0:00:02]} 35. Rb7+ {[%emt 0:00:26]} Kf6 {[%emt 0:00:26]} 36. Bf8 {[%emt 0:00:23]} Bd4+ {[%emt 0:01:12]} 37. Kf1 {[%emt 0:00:18]} Rxa4 {[%emt 0:00:18]} 38. Bg7+ {[%emt 0:00:50]} Ke6 {[%emt 0:00:33]} 39. Bxd4 {[%emt 0:00:15]} Rxd4 {[%emt 0:00:01]} 40. Rxh7 {[%emt 0:00:28]} Rd7 {[%emt 0:03:45]} 41. Rh6 {[%emt 0:01:52]} Kf6 {[%emt 0:07:30]} 42. Rh4 {[%emt 0:00:14]} Ra7 {[%emt 0:01:07]} 43. Ra4 {[%emt 0:00:10]} Ke5 {[%emt 0:00:06]} 44. g4 {[%emt 0:01:58]} fxg4 {[%emt 0:02:46]} 45. Ke2 {[%emt 0:00:45]} Ra6 {[%emt 0:03:38]} 46. Ke3 {[%emt 0:01:33]} Kf5 {[%emt 0:02:07]} 47. Kf2 {[%emt 0:01:01]} Ra8 {[%emt 0:00:28]} 48. Ke2 {[%emt 0:01:18]} Kg5 {[%emt 0:01:42]} 49. Kf2 {[%emt 0:00:44]} Ra6 {[%emt 0:01:01]} 50. Kg3 {[%emt 0:00:23]} Kf5 {[%emt 0:00:08]} 51. Kf2 {[%emt 0:00:07]} Ra7 {[%emt 0:01:19]} 52. Ke2 {[%emt 0:00:14]} Re7+ {[%emt 0:00:19]} 53. Kf2 {[%emt 0:00:31]} Re5 {[%emt 0:00:05]} 54. Kg3 {[%emt 0:00:52]} g5 {[%emt 0:00:04]} 55. Kf2 {[%emt 0:00:42]} Rb5 {[%emt 0:00:00]} 56. Kg3 {[%emt 0:00:39]} Kg6 {[%emt 0:00:07]} 57. Ra1 {[%emt 0:02:30]} Rc5 {[%emt 0:01:40]} 58. Ra2 {[%emt 0:02:24]} Rd5 {[%emt 0:00:19]} 59. Ra4 {[%emt 0:00:26]} Kf5 {[%emt 0:00:04]} 60. Ra3 {[%emt 0:00:27]} Ke4 {[%emt 0:01:52]} 61. Kxg4 {[%emt 0:03:21]} Kd4 {[%emt 0:00:05]} 62. Kf3 {[%emt 0:00:49]} Kc4 {[%emt 0:00:07]} 63. Ke4 {[%emt 0:00:31]} Kb4 {[%emt 0:01:14]} 64. Ra1 {[%emt 0:00:48]} Rd2 {[%emt 0:01:49]} 65. Rb1+ {[%emt 0:00:52]} Kc3 {[%emt 0:00:07]} 66. Ra1 {[%emt 0:00:14]} Kb4 {[%emt 0:00:17]} 67. Rb1+ {[%emt 0:00:05]} Ka3 {[%emt 0:00:07]} 68. Ra1+ {[%emt 0:00:46]} Ra2 {[%emt 0:00:19]} 69. Rg1 {[%emt 0:00:16]} a4 {[%emt 0:00:19]} 70. Kd3 {[%emt 0:01:05]} Rxh2 {[%emt 0:01:15]} 71. Rxg5 {[%emt 0:00:57]} Kb2 {[%emt 0:00:50]} 72. Rb5+ {[%emt 0:00:15]} Ka2 {[%emt 0:00:17]} 73. Kc3 {[%emt 0:01:03]} Rh8 {[%emt 0:00:48]} 74. Rc5 {[%emt 0:02:07]} a3 {[%emt 0:00:25]} 75. Kc2 {[%emt 0:00:34]} Rb8 {[%emt 0:00:30]} 76. Rc3 {[%emt 0:00:22]} Rb2+ {[%emt 0:00:35]} 77. Kc1 {[%emt 0:00:15]} Rb1+ {[%emt 0:00:08]} 78. Kc2 {[%emt 0:00:06]} Rh1 {[%emt 0:00:31]} 79. Rc8 {[%emt 0:00:20]} Rh2+ {[%emt 0:00:15]} 80. Kc1 {[%emt 0:00:14]} Rh1+ {[%emt 0:01:11]} 81. Kc2 {[%emt 0:00:09]} Rh3 {[%emt 0:00:32]} 82. Rc7 {[%emt 0:00:35]} Rh2+ {[%emt 0:00:19]} 83. Kc1 {[%emt 0:00:07]} Ka1 {[%emt 0:00:18]} 84. Rc3 {[%emt 0:00:37]} Rh1+ {[%emt 0:00:14]} 85. Kc2 {[%emt 0:00:11]} Ka2 {[%emt 0:00:39]} 86. Rc8 {[%emt 0:00:15]} Rh2+ {[%emt 0:00:09]} 87. Kc1 {[%emt 0:00:07]} Kb3 {[%emt 0:00:21]} 88. Rb8+ {[%emt 0:00:14]} Kc4 {[%emt 0:00:13]} 89. Kb1 {[%emt 0:00:19]} Rb2+ {[%emt 0:00:08]} 90. Rxb2 {[%emt 0:00:06]} axb2 {[%emt 0:00:02]} 91. Kxb2 {[%emt 0:00:07]} 1/2-1/2

[Event "CIS Master Groups 2024"]
[Site "Vasto"]
[Date "2024.04.12"]
[Round "7.18"]
[White "Gueci, Tea"]
[Black "Cassi, Elisa"]
[Result "1-0"]
[ECO "C95"]
[WhiteElo "2205"]
[BlackElo "2005"]
[Annotator "TA"]
[PlyCount "121"]
[EventDate "2024.04.07"]
[EventType "team-tourn"]
[EventCountry "ITA"]
[SourceTitle "playchess.com"]
[Source "ChessBase"]
[SourceQuality "1"]
[TimeControl "40/5400+30:900+30"]

{[%evp 21,121,27,28,16,31,0,33,38,40,18,37,35,42,40,26,31,60,65,67,69,68,74,75,72,88,49,129,143,145,116,106,100,96,91,120,117,120,80,91,89,132,135,174,141,149,148,188,197,187,103,215,89,253,248,251,250,247,254,249,247,260,261,261,250,252,263,366,355,369,369,461,444,469,455,516,506,561,567,521,395,749,484,497,0,1011,1007,945,841,1958,1832,1745,2173,2935,2019,3450,2545,6301,6079,5749,5081,1578,1483]} 1. e4 {[%emt 0:00:02]} e5 {[%emt 0:00:14]} 2. Nf3 {[%emt 0:00:03]} Nc6 {[%emt 0:00:03]} 3. Bb5 {[%emt 0:00:05]} a6 {[%emt 0:00:04]} 4. Ba4 {[%emt 0:00:02]} Nf6 {[%emt 0:00:04]} 5. O-O {[%emt 0:00:04]} Be7 {[%emt 0:00:04]} 6. Re1 {[%emt 0:00:16]} b5 {[%emt 0:00:10]} 7. Bb3 {[%emt 0:00:04]} d6 {[%emt 0:00:03]} 8. c3 {[%emt 0:00:04]} O-O {[%emt 0:00:23]} 9. h3 {[%emt 0:00:03]} Nb8 {[%emt 0:00:40]} 10. d4 {[%emt 0:00:05]} Nbd7 {[%emt 0:00:02]} 11. c4 {[%emt 0:00:08]} c6 {[%emt 0:03:48]} 12. Qc2 {[%emt 0:00:14]} Bb7 {[%emt 0:14:53]} 13. a3 {[%emt 0:00:06]} Rc8 {[%emt 0:03:19]} 14. Nc3 {[%emt 0:03:46] White is slightly better.} Re8 {[%emt 0:04:47]} 15. dxe5 {[%emt 0:11:25]} Nxe5 {[%emt 0:05:26]} 16. Nxe5 {[%emt 0:00:47]} dxe5 {[%emt 0:00:05]} 17. Be3 {[%emt 0:02:27]} Qc7 {[%emt 0:10:12]} 18. Ba2 {[%emt 0:02:25]} a5 {[%emt 0:03:23]} 19. cxb5 {[%emt 0:08:37]} cxb5 {[%emt 0:03:53]} 20. Qb3 {[%emt 0:00:05]} Qc4 {[%emt 0:03:07]} 21. Qxc4 {[%emt 0:06:52]} (21. Nxb5 Qxe4 22. Qxf7+ Kh8 $11) 21... bxc4 {[%emt 0:00:04]} 22. f3 {[%emt 0:00:29]} Nd7 {[%emt 0:07:27][%cal Bf6d7,Bd7f8,Bf8e6][%mdl 32]} 23. Red1 {[%emt 0:05:19]} Red8 {[%emt 0:01:39]} (23... Nc5 $1 $14) 24. Rac1 $16 {[%emt 0:02:16] White is more active.} Nf8 {[%emt 0:15:29]} 25. Bb6 {[%emt 0:14:00][%cal Be3b6,Bb6a5,Ba5b4][%mdl 32]} Rxd1+ {[%emt 0:00:54]} 26. Nxd1 {[%emt 0:02:59]} Ba6 {[%emt 0:03:36]} 27. Bxa5 {[%emt 0:05:05]} Bg5 {[%emt 0:00:24] [#]} 28. Rb1 {[%emt 0:03:47]} Ne6 {[%emt 0:01:01]} 29. g3 {[%emt 0:02:07] Wards off Nf4} Nd4 {[%emt 0:01:36]} 30. Kf2 {[%emt 0:00:50]} f5 {[%emt 0:05:31]} 31. Nc3 {[%emt 0:05:07]} Rf8 {[%emt 0:01:14]} 32. Bb4 {[%emt 0:12:03]} Rf7 {[%emt 0:00:28]} 33. Kg2 {[%emt 0:00:50]} h5 {[%emt 0:04:02]} 34. h4 {[%emt 0:02:41]} Bh6 {[%emt 0:00:03]} 35. Nd5 {[%emt 0:00:46]} ({Better is} 35. exf5 $18 {And now Nd5 would win.} Nc2 36. Bc5) 35... Kh7 {[%emt 0:04:07]} (35... fxe4 $16 36. fxe4 Nc2) 36. Bc3 {[%emt 0:00:53]} (36. Rd1 $18) 36... f4 $2 {[%emt 0:00:35]} (36... fxe4 $16 {might work better.} 37. fxe4 Ne2) 37. Rd1 $18 {[%emt 0:01:52] Black must now prevent gxf4.} fxg3 {[%emt 0:02:40]} 38. Bxd4 {[%emt 0:00:29]} exd4 {[%emt 0:00:07]} 39. Rxd4 {[%emt 0:01:06]} Bc1 {[%emt 0:02:58]} 40. Bxc4 {[%emt 0:02:31]} Bxb2 {[%emt 0:00:06]} 41. Rd2 {[%emt 0:15:27]} Bxc4 {[%emt 0:15:48]} 42. Rxb2 {[%emt 0:00:07][%mdl 4096] Endgame. KRB-KRN} Ra7 {[%emt 0:00:00]} 43. Nb6 {[%emt 0:00:00]} ({Don't do} 43. Kxg3 $6 Rxa3 44. Nf4 Ra5 $18) 43... Bd3 {[%emt 0:00:00]} 44. a4 {[%emt 0:00:00]} ({Weaker is} 44. Kxg3 Rxa3 45. Kf4 Ra7 $18) 44... Ra6 {[%emt 0:00:00]} 45. Kxg3 {[%emt 0:00:00]} Kg6 {[%emt 0:00:00]} 46. Kf4 {[%emt 0:00:00]} Ra5 {[%emt 0:00:00]} 47. Ke3 {[%emt 0:00:00]} Ba6 {[%emt 0:00:00]} 48. Kd4 {[%emt 0:00:00] Prevents Rc5.} Kf7 {[%emt 0:00:00]} 49. f4 {[%emt 0:00:00]} g6 {[%emt 0:00:00]} 50. Rb4 {[%emt 0:00:00]} Ke6 $2 {[%emt 0:00:00]} (50... Be2 51. Nd7 Ra6) 51. Nd5 {[%emt 0:00:00]} Bc8 {[%emt 0:00:00]} 52. Nb6 {[%emt 0:00:00]} (52. Rb6+ Kf7 53. Nc3 Be6 54. Rb7+ Kf8 55. Rb8+ Kf7 $18) (52. Kc3 $142) 52... Ba6 $1 {[%emt 0:00:00]} 53. Nc4 {[%emt 0:00:38] White is clearly winning.} Bxc4 {[%emt 0:00:00]} 54. Kxc4 {[%emt 0:00:16] [#] Rb6+ would now be deadly. KR-KR} Ra8 {[%emt 0:00:00]} 55. Rb6+ {[%emt 0:00:46]} Kd7 {[%emt 0:00:00]} 56. Rxg6 {[%emt 0:00:49]} Rxa4+ {[%emt 0:00:00]} 57. Kd5 {[%emt 0:00:12] Rg7+ is the strong threat.} Ra5+ {[%emt 0:00:00]} 58. Kd4 {[%emt 0:00:05]} Ra4+ {[%emt 0:00:00]} 59. Ke5 {[%emt 0:00:39]} Ra5+ {[%emt 0:00:00]} 60. Kf6 {[%emt 0:00:09]} Ra4 {[%emt 0:00:00]} 61. Kf5 {[%emt 0:00:22] Weighted Error Value: White=0.32/Black=0.30.  Loses game:     	---       	Black=1      Mistake:       	White=2     	Black=3      Inaccurate:     	White=4     	Black=5      OK:         	White=22    	Black=12     Best:        	White=1     	Black=1      Strong:       	---       	Black=1} 1-0

[Event "CIS Master Groups 2024"]
[Site "Vasto"]
[Date "2024.04.12"]
[Round "7.19"]
[White "Andolfatto, Maria"]
[Black "Grimaldi, Angela Flavia"]
[Result "1-0"]
[ECO "B36"]
[WhiteElo "2052"]
[BlackElo "1983"]
[Annotator "TA"]
[PlyCount "95"]
[EventDate "2024.04.07"]
[EventType "team-tourn"]
[EventCountry "ITA"]
[SourceTitle "playchess.com"]
[Source "ChessBase"]
[SourceQuality "1"]
[TimeControl "40/5400+30:900+30"]

{[%evp 17,95,31,55,9,0,10,-1,0,24,0,0,-25,19,10,28,27,34,33,47,46,60,66,63,27,67,27,24,20,33,34,20,0,27,23,35,32,56,48,49,46,60,55,52,50,47,49,57,20,232,220,218,205,208,240,314,310,520,529,516,504,639,622,607,584,1341,1335,1738,1489,1435,1252,29973,29973,29978,29979,29987,29988,29989,29990,29990,29991]} 1. Nf3 {[%emt 0:00:06]} c5 {[%emt 0:00:10]} 2. c4 {[%emt 0:00:05]} g6 {[%emt 0:00:05]} 3. d4 {[%emt 0:01:56]} cxd4 {[%emt 0:00:15]} 4. Nxd4 {[%emt 0:00:06]} Nc6 {[%emt 0:00:04]} 5. e4 {[%emt 0:02:02]} Nf6 {[%emt 0:00:08]} 6. Nc3 {[%emt 0:00:49]} d6 {[%emt 0:00:07]} 7. Be2 {[%emt 0:01:01]} Nxd4 {[%emt 0:00:07]} 8. Qxd4 {[%emt 0:00:10]} Bg7 {[%emt 0:00:15]} 9. O-O {[%emt 0:01:35]} O-O {[%emt 0:00:23]} 10. h3 {[%emt 0:00:58]} (10. Bg5 $14) 10... Be6 $11 {[%emt 0:04:24][%cal Of6d5]} 11. Qd3 {[%emt 0:07:04]} Rc8 {[%emt 0:03:09]} 12. Nd5 $1 {[%emt 0:01:30] The position is equal.} Bxd5 {[%emt 0:00:31]} 13. cxd5 {[%emt 0:04:06]} Nd7 {[%emt 0:04:51]} 14. Bg4 {[%emt 0:02:53]} Nc5 {[%emt 0:05:58]} 15. Qe2 {[%emt 0:00:56]} Ra8 {[%emt 0:03:49]} 16. Rb1 {[%emt 0:03:47]} h5 {[%emt 0:03:42]} 17. Bf3 {[%emt 0:00:31]} a5 {[%emt 0:05:03]} 18. Be3 {[%emt 0:03:54]} Qb6 {[%emt 0:08:01]} 19. Rfc1 {[%emt 0:05:05]} Rfc8 {[%emt 0:01:13]} 20. b3 {[%emt 0:01:06]} Qa7 {[%emt 0:34:41]} 21. a3 {[%emt 0:05:53] [#] Black must now prevent b4.} Qa6 {[%emt 0:11:11]} 22. Qxa6 {[%emt 0:15:02]} Nxa6 {[%emt 0:01:55]} 23. Rxc8+ {[%emt 0:04:17]} Rxc8 {[%emt 0:00:05]} 24. Be2 {[%emt 0:03:06]} Nc5 {[%emt 0:02:22]} 25. f3 {[%emt 0:04:05]} Ra8 {[%emt 0:04:15]} 26. Bb5 {[%emt 0:01:25]} Rc8 {[%emt 0:01:53]} 27. Kf1 {[%emt 0:03:33]} Bf6 {[%emt 0:02:27]} 28. Ke2 {[%emt 0:01:48]} Kg7 {[%emt 0:01:04]} 29. b4 {[%emt 0:13:55]} axb4 {[%emt 0:00:26]} 30. axb4 {[%emt 0:00:08]} Na6 {[%emt 0:00:29]} 31. Bd2 $36 {[%emt 0:00:51][%mdl 2048] White has the initiative.} Rc2 {[%emt 0:01:22]} 32. Kd3 {[%emt 0:01:07] Wards off Bc3} Rc8 {[%emt 0:00:40] [#] This costs Black the game.} (32... Ra2 $11) 33. Bxa6 $1 $18 {[%emt 0:04:08]} bxa6 {[%emt 0:00:04][%mdl 4096] Endgame. KRB-KRB} 34. Rb3 {[%emt 0:00:19]} Rb8 {[%emt 0:01:32]} 35. Ra3 {[%emt 0:00:09]} Rb6 {[%emt 0:00:34]} 36. Kc4 {[%emt 0:00:27] Threatens to win with Be3.} Bb2 $2 {[%emt 0:00:41]} (36... Kf8 37. Be3 Rb8 38. Rxa6 Rd8) 37. Ra2 {[%emt 0:00:23]} Be5 {[%emt 0:00:13]} 38. Be3 {[%emt 0:07:09]} Rb7 {[%emt 0:00:08]} 39. Rxa6 {[%emt 0:00:24]} f5 {[%emt 0:00:27]} 40. Ra7 {[%emt 0:01:23]} Rxa7 {[%emt 0:01:00]} 41. Bxa7 {[%emt 0:15:10] KB-KB} Bg3 {[%emt 0:15:37]} 42. Bd4+ {[%emt 0:00:00]} Kf7 {[%emt 0:00:00]} 43. b5 {[%emt 0:00:00][%cal Bb4b5,Bb5b6,Bb6b7][%mdl 32]} Ke8 {[%emt 0:00:00]} 44. b6 {[%emt 0:00:00] White mates.} Kd7 {[%emt 0:00:00]} 45. Kb5 {[%emt 0:00:00]} e5 {[%emt 0:00:00]} 46. Bg1 {[%emt 0:00:00]} Bh4 {[%emt 0:00:00]} 47. b7 {[%emt 0:00:00]} Kc7 {[%emt 0:00:00]} 48. Ka6 {[%emt 0:00:00] Weighted Error Value: White=0.06 (flawless) /Black=0.45.  Loses game:     	---       	Black=1      Mistake:       	---       	Black=1      Inaccurate:     	White=3     	Black=5      OK:         	White=17    	Black=6      Best:        	White=1     	---        Strong:       	White=2     	---} 1-0